fUSD/lending_fUSD_20260315
["ID","MTS","AMOUNT","RATE_DAILY","PERIOD"]
[408425637,1773599467786,-300.0,0.00042853,2]
[408425638,1773599467796,-300.0,0.00042853,2]
[408425639,1773599467805,-300.00000001,0.00042853,2]
[408425640,1773599467815,-300.0,0.00042853,2]
[408425641,1773599467824,-420.57591851,0.00042853,2]
[408425642,1773599467835,-300.0,0.00042853,2]
[408425643,1773599467845,-301.8153407,0.00042853,2]
[408425644,1773599467855,-300.0,0.00042853,2]
[408425645,1773599467865,-300.0,0.00042853,2]
[408425646,1773599467876,-303.27169845,0.00042853,2]
[408425647,1773599467885,-1050.38737356,0.00042853,2]
[408425648,1773599467894,-307.09317041,0.00042853,2]
[408425649,1773599467904,-857.47271976,0.00042853,2]
[408425650,1773599467918,-446.98170772,0.00042853,2]
[408425651,1773599467928,-300.0,0.00042853,2]
[408425652,1773599467937,-308.36419654,0.00042853,2]
[408425653,1773599467947,-300.0,0.00042853,2]
[408425654,1773599467958,-300.0,0.00042853,2]
[408425655,1773599467968,-460.10536323,0.00042853,2]
[408425656,1773599468077,-300.0,0.00042853,2]
[408425657,1773599468088,-300.0,0.00042853,2]
[408425658,1773599468097,-300.0,0.00042853,2]
[408425659,1773599468107,-448.21273408,0.00042853,2]
[408425660,1773599468116,-300.0,0.00042853,2]
[408425661,1773599468125,-300.0,0.00042853,2]
[408425662,1773599468134,-302.45218568,0.00042853,2]
[408425663,1773599468144,-300.0,0.00042853,2]
[408425664,1773599468153,-300.0,0.00042853,2]
[408425665,1773599468163,-520.42881649,0.00042853,2]
[408425666,1773599468172,-307.31607308,0.00042853,2]
[408425667,1773599468181,-300.0,0.00042853,2]
[408425668,1773599468190,-300.0,0.00042853,2]
[408425669,1773599468200,-300.0,0.00042853,2]
[408425670,1773599468209,-300.0,0.00042853,2]
[408425671,1773599468219,-416.45217614,0.00042853,2]
[408425672,1773599468229,-300.0,0.00042853,2]
[408425673,1773599468240,-300.0,0.00042853,2]
[408425674,1773599468249,-300.0,0.00042853,2]
[408425675,1773599468259,-1085.8613559,0.00042853,2]
[408425676,1773599468268,-300.0,0.00042853,2]
[408425677,1773599468278,-300.0,0.00042853,2]
[408425678,1773599468288,-300.0,0.00042853,2]
[408425679,1773599468297,-300.0,0.00042853,2]
[408425680,1773599468307,-300.0,0.00042853,2]
[408425681,1773599468316,-300.0,0.00042853,2]
[408425682,1773599468326,-300.00000001,0.00042853,2]
[408425683,1773599468335,-300.82497123,0.00042853,2]
[408425684,1773599468345,-300.0,0.00042853,2]
[408425685,1773599468354,-300.0,0.00042853,2]
[408425686,1773599468363,-300.0,0.00042853,2]
[408425687,1773599468373,-300.0,0.00042853,2]
[408425688,1773599468382,-300.0,0.00042853,2]
[408425689,1773599468391,-303.27169845,0.00042853,2]
[408425690,1773599468401,-300.0,0.00042853,2]
[408425691,1773599468410,-300.0,0.00042853,2]
[408425692,1773599468419,-1049.65032939,0.00042853,2]
[408425693,1773599468428,-307.09317041,0.00042853,2]
[408425694,1773599468438,-857.47271976,0.00042853,2]
[408425695,1773599468448,-599.38547444,0.00042853,2]
[408425696,1773599468458,-308.36419654,0.00042853,2]
[408425697,1773599468468,-301.24635826,0.00042853,2]
[408425698,1773599468477,-300.0,0.00042853,2]
[408425699,1773599468487,-300.0,0.00042853,2]
[408425700,1773599468496,-460.10536322,0.00042853,2]
[408425701,1773599468505,-300.0,0.00042853,2]
[408425702,1773599468515,-448.21273408,0.00042853,2]
[408425703,1773599468524,-300.0,0.00042853,2]
[408425704,1773599468533,-300.0,0.00042853,2]
[408425705,1773599468543,-302.45218568,0.00042853,2]
[408425706,1773599468552,-520.42881648,0.00042853,2]
[408425707,1773599468561,-307.31607308,0.00042853,2]
[408425708,1773599468571,-300.0,0.00042853,2]
[408425709,1773599468580,-416.45217616,0.00042853,2]
[408425710,1773599468591,-300.0,0.00042853,2]
[408425711,1773599468600,-300.0,0.00042853,2]
[408425712,1773599468609,-1085.8613559,0.00042853,2]
[408425713,1773599468618,-300.0,0.00042853,2]
[408425714,1773599468627,-300.0,0.00042853,2]
[408425715,1773599468637,-300.85218716,0.00042853,2]
[408425716,1773599468646,-300.0,0.00042853,2]
[408425717,1773599468655,-300.8558511,0.00042853,2]
[408425718,1773599468665,-300.0,0.00042853,2]
[408425719,1773599468675,-300.0,0.00042853,2]
[408425720,1773599468686,-300.0,0.00042853,2]
[408425721,1773599468696,-300.0,0.00042853,2]
[408425722,1773599468706,-303.27169845,0.00042853,2]
[408425723,1773599468716,-300.0,0.00042853,2]
[408425724,1773599468727,-300.0,0.00042853,2]
[408425725,1773599468736,-1050.14169215,0.00042853,2]
[408425726,1773599468746,-307.09317041,0.00042853,2]
[408425727,1773599468755,-857.47271976,0.00042853,2]
[408425728,1773599468764,-308.36419654,0.00042853,2]
[408425729,1773599468773,-300.0,0.00042853,2]
[408425730,1773599468783,-460.10536322,0.00042853,2]
[408425731,1773599468792,-300.0,0.00042853,2]
[408425732,1773599468801,-300.0,0.00042853,2]
[408425733,1773599468810,-448.21273408,0.00042853,2]
[408425734,1773599468819,-300.0,0.00042853,2]
[408425735,1773599468829,-302.45218568,0.00042853,2]
[408425736,1773599468838,-520.42881648,0.00042853,2]
[408425737,1773599468848,-307.31607308,0.00042853,2]
[408425738,1773599468857,-300.0,0.00042853,2]
[408425739,1773599468867,-607.04392569,0.00042853,2]
[408425740,1773599468876,-300.0,0.00042853,2]
[408425741,1773599468885,-300.0,0.00042853,2]
[408425742,1773599468895,-1085.86135592,0.00042853,2]
[408425743,1773599468905,-323.78527935,0.00042853,2]
[408425744,1773599468915,-300.0,0.00042853,2]
[408425745,1773599468929,-300.0,0.00042853,2]
[408425746,1773599468938,-300.0,0.00042853,2]
[408425747,1773599468949,-300.0,0.00042853,2]
[408425748,1773599468958,-303.27169845,0.00042853,2]
[408425749,1773599468967,-300.0,0.00042853,2]
[408425750,1773599468977,-300.0,0.00042853,2]
[408425751,1773599468986,-1050.14169216,0.00042853,2]
[408425752,1773599468997,-307.09317041,0.00042853,2]
[408425753,1773599469008,-857.47271976,0.00042853,2]
[408425754,1773599469018,-308.36419652,0.00042853,2]
[408425755,1773599469027,-300.0,0.00042853,2]
[408425756,1773599469037,-460.10536322,0.00042853,2]
[408425757,1773599469046,-300.0,0.00042853,2]
[408425758,1773599469055,-300.0,0.00042853,2]
[408425759,1773599469064,-448.21273408,0.00042853,2]
[408425760,1773599469073,-300.0,0.00042853,2]
[408425761,1773599469083,-302.45218568,0.00042853,2]
[408425762,1773599469092,-520.4288165,0.00042853,2]
[408425763,1773599469101,-307.31607308,0.00042853,2]
[408425764,1773599469110,-580.712125,0.00042853,2]
[408425765,1773599469119,-300.0,0.00042853,2]
[408425766,1773599469128,-1085.86135592,0.00042853,2]
[408425767,1773599469137,-529.36792073,0.00042853,2]
[408425768,1773599469146,-300.0,0.00042853,2]
[408425769,1773599469158,-303.27169845,0.00042853,2]
[408425770,1773599469169,-300.0,0.00042853,2]
[408425771,1773599469180,-300.0,0.00042853,2]
[408425772,1773599469191,-1050.14169217,0.00042853,2]
[408425773,1773599469200,-307.09317041,0.00042853,2]
[408425774,1773599469209,-857.47271976,0.00042853,2]
[408425775,1773599469219,-308.36419654,0.00042853,2]
[408425776,1773599469227,-300.0,0.00042853,2]
[408425777,1773599469236,-460.10536322,0.00042853,2]
[408425778,1773599469245,-300.0,0.00042853,2]
[408425779,1773599469254,-300.0,0.00042853,2]
[408425780,1773599469263,-448.21273408,0.00042853,2]
[408425781,1773599469273,-300.0,0.00042853,2]
[408425782,1773599469282,-302.45218568,0.00042853,2]
[408425783,1773599469291,-520.42881649,0.00042853,2]
[408425784,1773599469301,-307.31607308,0.00042853,2]
[408425785,1773599469310,-300.0,0.00042853,2]
[408425786,1773599469319,-1085.8613559,0.00042853,2]
[408425787,1773599469328,-300.0,0.00042853,2]
[408425788,1773599469337,-303.27169845,0.00042853,2]
[408425789,1773599469348,-300.0,0.00042853,2]
[408425790,1773599469357,-300.0,0.00042853,2]
[408425791,1773599469366,-1050.38737355,0.00042853,2]
[408425792,1773599469375,-307.09317041,0.00042853,2]
[408425793,1773599469384,-857.47271976,0.00042853,2]
[408425794,1773599469393,-308.36419652,0.00042853,2]
[408425795,1773599469402,-460.10536322,0.00042853,2]
[408425796,1773599469411,-388.32296322,0.00042853,2]
[408425797,1773599469420,-300.0,0.00042853,2]
[408425798,1773599469430,-448.21273408,0.00042853,2]
[408425799,1773599469439,-300.0,0.00042853,2]
[408425800,1773599469449,-302.45218568,0.00042853,2]
[408425801,1773599469458,-520.42881649,0.00042853,2]
[408425802,1773599469467,-307.31607308,0.00042853,2]
[408425803,1773599469476,-300.0,0.00042853,2]
[408425804,1773599469486,-1085.86135592,0.00042853,2]
[408425805,1773599469494,-300.0,0.00042853,2]
[408425806,1773599469503,-303.27169845,0.00042853,2]
[408425807,1773599469512,-300.0,0.00042853,2]
[408425808,1773599469522,-300.0,0.00042853,2]
[408425809,1773599469531,-1049.89601077,0.00042853,2]
[408425810,1773599469539,-307.09317041,0.00042853,2]
[408425811,1773599469549,-857.47271976,0.00042853,2]
[408425812,1773599469558,-308.36419652,0.00042853,2]
[408425813,1773599469567,-300.0,0.00042853,2]
[408425814,1773599469576,-460.10536322,0.00042853,2]
[408425815,1773599469585,-300.0,0.00042853,2]
[408425816,1773599469594,-448.21273408,0.00042853,2]
[408425817,1773599469603,-483.580594,0.00042853,2]
[408425818,1773599469612,-302.45218568,0.00042853,2]
[408425819,1773599469622,-520.4288165,0.00042853,2]
[408425820,1773599469631,-307.31607308,0.00042853,2]
[408425821,1773599469640,-300.0,0.00042853,2]
[408425822,1773599469649,-1085.86135591,0.00042853,2]
[408425823,1773599469658,-300.0,0.00042853,2]
[408425824,1773599469667,-300.0,0.00042853,2]
[408425825,1773599469676,-303.27169845,0.00042853,2]
[408425826,1773599469685,-300.0,0.00042853,2]
[408425827,1773599469695,-1050.14169215,0.00042853,2]
[408425828,1773599469705,-307.09317041,0.00042853,2]
[408425829,1773599469714,-857.47271976,0.00042853,2]
[408425830,1773599469725,-308.36419654,0.00042853,2]
[408425831,1773599469735,-300.0,0.00042853,2]
[408425832,1773599469745,-460.10536322,0.00042853,2]
[408425833,1773599469754,-300.0,0.00042853,2]
[408425834,1773599469860,-448.21273408,0.00042853,2]
[408425835,1773599469871,-302.45218568,0.00042853,2]
[408425836,1773599469881,-520.42881648,0.00042853,2]
[408425837,1773599469890,-307.31607308,0.00042853,2]
[408425838,1773599469900,-300.0,0.00042853,2]
[408425839,1773599469912,-1085.8613559,0.00042853,2]
[408425840,1773599469922,-300.0,0.00042853,2]
[408425841,1773599469932,-303.27169845,0.00042853,2]
[408425842,1773599469941,-300.0,0.00042853,2]
[408425843,1773599469953,-300.0,0.00042853,2]
[408425844,1773599469962,-1050.14169217,0.00042853,2]
[408425845,1773599469971,-307.09317041,0.00042853,2]
[408425846,1773599469981,-857.47271976,0.00042853,2]
[408425847,1773599469991,-308.36419652,0.00042853,2]
[408425848,1773599470000,-300.0,0.00042853,2]
[408425849,1773599470010,-460.10536322,0.00042853,2]
[408425850,1773599470020,-300.0,0.00042853,2]
[408425851,1773599470029,-448.21273408,0.00042853,2]
[408425852,1773599470039,-302.45218568,0.00042853,2]
[408425853,1773599470049,-520.42881649,0.00042853,2]
[408425854,1773599470058,-307.31607308,0.00042853,2]
[408425855,1773599470068,-300.0,0.00042853,2]
[408425856,1773599470077,-165.5305,0.000429,2]
[408425857,1773599470086,-200.0,0.000429,120]
[408425858,1773599470101,-300.0,0.000429,15]
[408425859,1773599470111,-1000.0,0.00042966,120]
[408425860,1773599470121,-151.5,0.00042977,2]
[408425861,1773599470130,-5104.54511776,0.0004299,60]
[408425862,1773599470140,-1729.92369316,0.00043,2]
[408425863,1773599470149,-258407.43278191,0.00043,7]
[408425864,1773599470159,-167448.45,0.00043,30]
[408425865,1773599470168,-50000.0,0.00043,120]
[408425866,1773599470177,-50000.0,0.00043,120]
[408425867,1773599470186,-402.69,0.00043,14]
[408425868,1773599470195,-357.5,0.00043,30]
[408425869,1773599470205,-1310.59,0.00043,30]
[408425870,1773599470214,-500.0,0.00043013,60]
[408425871,1773599470223,-151.5,0.00043042,2]
[408425872,1773599470232,-151.5,0.00043074,2]
[408425873,1773599470241,-182.6691,0.000432,2]
[408425874,1773599470250,-871.14,0.000432,120]
[408425875,1773599470260,-151.5,0.00043236,2]
[408425876,1773599470269,-1000.0,0.0004324,120]
[408425877,1773599470278,-1528.85560159,0.00043244,2]
[408425878,1773599470287,-1600.0,0.00043287,60]
[408425879,1773599470296,-151.5,0.00043379,2]
[408425880,1773599470305,-118812.52517607,0.00043444,4]
[408425881,1773599470315,-201.5822,0.000435,2]
[408425882,1773599470323,-1399.54704421,0.000435,30]
[408425883,1773599470333,-469.87233333,0.000435,30]
[408425884,1773599470341,-469.87233333,0.000435,120]
[408425885,1773599470351,-156.68912876,0.000435,7]
[408425886,1773599470360,-1000.0,0.00043514,120]
[408425887,1773599470369,-1000.0,0.00043548,3]
[408425888,1773599470378,-1300.0,0.00043561,60]
[408425889,1773599470387,-284.5883761,0.00043562,120]
[408425890,1773599470396,-150.0,0.00043587,30]
[408425891,1773599470405,-151.5,0.00043594,2]
[408425892,1773599470414,-1078.0,0.0004365,60]
[408425893,1773599470423,-151.5,0.0004365,2]
[408425894,1773599470432,-150.0,0.00043718,30]
[408425895,1773599470441,-500.0,0.00043726,120]
[408425896,1773599470451,-500.0,0.00043726,120]
[408425897,1773599470460,-500.0,0.00043726,120]
[408425898,1773599470469,-349.99,0.00043726,120]
[408425899,1773599470479,-156.68912876,0.00043774,7]
[408425900,1773599470488,-1000.0,0.00043788,120]
[408425901,1773599470498,-222.4534,0.000438,2]
[408425902,1773599470507,-367.0,0.000438,120]
[408425903,1773599470516,-1000000.0,0.000438,30]
[408425904,1773599470525,-423.30687625,0.00043808,120]
[408425905,1773599470534,-13722.4686147,0.000439,120]
[408425906,1773599470543,-402.69,0.000439,14]
[408425907,1773599470552,-357.5,0.000439,30]
[408425908,1773599470561,-1310.59,0.000439,30]
[408425909,1773599470570,-152217.66773672,0.00043987,120]
[408425910,1773599470580,-218.81,0.00044,2]
[408425911,1773599470589,-245.4856,0.00044,2]
[408425912,1773599470598,-160.0,0.00044,120]
[408425913,1773599470607,-20079.48856941,0.00044,2]
[408425914,1773599470617,-151.84222984,0.00044,5]
[408425915,1773599470626,-180.09656517,0.00044,120]
[408425916,1773599470635,-335.42769407,0.00044,120]
[408425917,1773599470644,-163.41625317,0.00044,120]
[408425918,1773599470653,-191.5302,0.00044,120]
[408425919,1773599470662,-50000.0,0.00044,120]
[408425920,1773599470672,-26279.2728643,0.00044,120]
[408425921,1773599470681,-27694.11578046,0.00044,14]
[408425922,1773599470690,-564.086424,0.00044,57]
[408425923,1773599470699,-3100.0,0.00044,120]
[408425924,1773599470709,-1090.3,0.00044027,120]
[408425925,1773599470718,-156.68912876,0.00044048,7]
[408425926,1773599470728,-1000.0,0.00044062,120]
[408425927,1773599470736,-161.0,0.000441,120]
[408425928,1773599470746,-165.0,0.000441,120]
[408425929,1773599470756,-151.5,0.00044101,2]
[408425930,1773599470766,-500.0,0.00044109,60]
[408425931,1773599470775,-1637.09,0.00044114,90]
[408425932,1773599470785,-151.5,0.00044168,2]
[408425933,1773599470794,-13440.08314322,0.000442,7]
[408425934,1773599470804,-150.0,0.0004428,2]
[408425935,1773599470813,-152.0,0.00044289,6]
[408425936,1773599470822,-270.9025,0.000443,2]
[408425937,1773599470832,-299.9,0.000443,60]
[408425938,1773599470841,-156.68912876,0.00044322,7]
[408425939,1773599470850,-166.647,0.00044329,120]
[408425940,1773599470860,-155.0,0.00044329,120]
[408425941,1773599470871,-1000.0,0.00044336,120]
[408425942,1773599470881,-1247.79451467,0.00044346,2]
[408425943,1773599470890,-151.5,0.00044367,2]
[408425944,1773599470900,-151.5,0.00044379,2]
[408425945,1773599470911,-1600.0,0.00044383,60]
[408425946,1773599470923,-200.0,0.000444,120]
[408425947,1773599470932,-156.68912876,0.00044596,7]
[408425948,1773599470942,-298.951,0.000446,2]
[408425949,1773599470951,-1000.0,0.0004461,120]
[408425950,1773599470962,-151.5,0.0004464,2]
[408425951,1773599470971,-1300.0,0.00044657,60]
[408425952,1773599470982,-357.5,0.000447,30]
[408425953,1773599470992,-1310.59,0.000447,30]
[408425954,1773599471002,-151.5,0.00044705,2]
[408425955,1773599471012,-500.0,0.00044767,30]
[408425956,1773599471022,-500.0,0.00044767,30]
[408425957,1773599471031,-500.0,0.00044767,30]
[408425958,1773599471041,-402.69,0.000448,14]
[408425959,1773599471051,-151.5,0.00044864,2]
[408425960,1773599471061,-156.68912876,0.0004487,7]
[408425961,1773599471071,-1000.0,0.00044884,120]
[408425962,1773599471080,-151.56,0.00044885,120]
[408425963,1773599471090,-182.15235464,0.0004489,120]
[408425964,1773599471099,-329.9036,0.000449,2]
[408425965,1773599471109,-151.5,0.00044946,2]
[408425966,1773599471118,-151.5,0.00044972,2]
[408425967,1773599471127,-151.56,0.00044985,120]
[408425968,1773599471136,-296.09,0.00044997,30]
[408425969,1773599471145,-25112.85021864,0.00045,120]
[408425970,1773599471154,-655.02686129,0.00045,2]
[408425971,1773599471164,-43500.0,0.00045,60]
[408425972,1773599471173,-250.0,0.00045,5]
[408425973,1773599471182,-250.0,0.00045,120]
[408425974,1773599471191,-200.0,0.00045,120]
[408425975,1773599471200,-15000.0,0.00045,7]
[408425976,1773599471210,-188.48114928,0.00045,120]
[408425977,1773599471218,-159.90431014,0.00045,30]
[408425978,1773599471228,-154.96396205,0.00045,120]
[408425979,1773599471237,-519.73439548,0.00045,120]
[408425980,1773599471247,-4534.12345678,0.00045,8]
[408425981,1773599471256,-10000.0,0.00045,7]
[408425982,1773599471265,-301.2,0.00045,120]
[408425983,1773599471275,-255.92447044,0.00045,120]
[408425984,1773599471284,-3073.16,0.00045,120]
[408425985,1773599471293,-14904.28,0.00045,120]
[408425986,1773599471302,-3672.0,0.00045,7]
[408425987,1773599471312,-464.39116492,0.00045,3]
[408425988,1773599471321,-770050.71358894,0.00045,2]
[408425989,1773599471331,-567.38,0.00045,120]
[408425990,1773599471340,-9332.0,0.00045,120]
[408425991,1773599471349,-3197.91,0.00045,120]
[408425992,1773599471358,-5001.51,0.00045,120]
[408425993,1773599471367,-102690.21,0.00045,30]
[408425994,1773599471377,-1783.98,0.00045,120]
[408425995,1773599471387,-2000.0,0.00045,88]
[408425996,1773599471397,-2000.0,0.00045,88]
[408425997,1773599471407,-2000.0,0.00045,88]
[408425998,1773599471503,-2000.0,0.00045,88]
[408425999,1773599471515,-2000.0,0.00045,88]
[408426000,1773599471524,-2000.0,0.00045,88]
[408426001,1773599471535,-2000.0,0.00045,88]
[408426002,1773599471547,-3709.09870197,0.00045,88]
[408426003,1773599471556,-356.8,0.00045,120]
[408426004,1773599471565,-50000.0,0.00045,120]
[408426005,1773599471574,-50000.0,0.00045,120]
[408426006,1773599471584,-50000.0,0.00045,120]
[408426007,1773599471593,-2000.0,0.00045,88]
[408426008,1773599471601,-2000.0,0.00045,88]
[408426009,1773599471611,-2000.0,0.00045,88]
[408426010,1773599471620,-2000.0,0.00045,88]
[408426011,1773599471629,-2000.0,0.00045,88]
[408426012,1773599471638,-2000.0,0.00045,88]
[408426013,1773599471647,-2000.0,0.00045,88]
[408426014,1773599471656,-2000.0,0.00045,88]
[408426015,1773599471666,-2000.0,0.00045,88]
[408426016,1773599471675,-2000.0,0.00045,88]
[408426017,1773599471684,-3433.61190574,0.00045,88]
[408426018,1773599471694,-570.49827258,0.00045,120]
[408426019,1773599471703,-7101.5,0.00045,120]
[408426020,1773599471713,-1078.0,0.00045,60]
[408426021,1773599471722,-311.57,0.00045,120]
[408426022,1773599471731,-336.02,0.00045,120]
[408426023,1773599471741,-380.7,0.00045,120]
[408426024,1773599471750,-608.54,0.00045,120]
[408426025,1773599471759,-3053.96,0.00045,30]
[408426026,1773599471769,-310.73,0.00045,30]
[408426027,1773599471779,-151.5,0.00045041,2]
[408426028,1773599471789,-500.0,0.00045041,30]
[408426029,1773599471799,-500.0,0.00045041,30]
[408426030,1773599471808,-151.0,0.00045068,120]
[408426031,1773599471818,-151.0,0.00045068,120]
[408426032,1773599471827,-151.0,0.00045068,120]
[408426033,1773599471836,-160.139114,0.00045068,120]
[408426034,1773599471845,-151.0,0.00045068,120]
[408426035,1773599471854,-151.0,0.00045068,120]
[408426036,1773599471863,-151.0,0.00045068,120]
[408426037,1773599471873,-151.0,0.00045068,120]
[408426038,1773599471882,-151.0,0.00045068,120]
[408426039,1773599471892,-151.0,0.00045068,120]
[408426040,1773599471901,-151.0,0.00045068,120]
[408426041,1773599471911,-151.0,0.00045068,120]
[408426042,1773599471922,-151.0,0.00045068,120]
[408426043,1773599471932,-151.0,0.00045068,120]
[408426044,1773599471942,-151.0,0.00045068,120]
[408426045,1773599471952,-181.756937,0.00045068,120]
[408426046,1773599471963,-290.117832,0.00045068,120]
[408426047,1773599471973,-151.0,0.00045068,120]
[408426048,1773599471982,-151.0,0.00045068,120]
[408426049,1773599471991,-151.0,0.00045068,120]
[408426050,1773599472001,-181.184518,0.00045068,120]
[408426051,1773599472011,-210.356372,0.00045068,120]
[408426052,1773599472021,-210.356372,0.00045068,120]
[408426053,1773599472030,-210.356372,0.00045068,120]
[408426054,1773599472039,-210.356372,0.00045068,120]
[408426055,1773599472048,-210.356372,0.00045068,120]
[408426056,1773599472058,-210.356372,0.00045068,120]
[408426057,1773599472067,-210.356372,0.00045068,120]
[408426058,1773599472076,-210.356372,0.00045068,120]
[408426059,1773599472085,-210.356372,0.00045068,120]
[408426060,1773599472094,-210.356372,0.00045068,120]
[408426061,1773599472105,-210.356372,0.00045068,120]
[408426062,1773599472114,-210.356372,0.00045068,120]
[408426063,1773599472123,-210.356372,0.00045068,120]
[408426064,1773599472133,-210.356372,0.00045068,120]
[408426065,1773599472142,-210.356372,0.00045068,120]
[408426066,1773599472151,-210.356372,0.00045068,120]
[408426067,1773599472161,-210.356372,0.00045068,120]
[408426068,1773599472170,-210.356372,0.00045068,120]
[408426069,1773599472179,-210.356372,0.00045068,120]
[408426070,1773599472188,-210.356362,0.00045068,120]
[408426071,1773599472198,-303.670483,0.00045068,120]
[408426072,1773599472208,-303.670483,0.00045068,120]
[408426073,1773599472217,-303.670483,0.00045068,120]
[408426074,1773599472227,-303.670483,0.00045068,120]
[408426075,1773599472238,-303.670483,0.00045068,120]
[408426076,1773599472250,-303.670483,0.00045068,120]
[408426077,1773599472260,-303.670483,0.00045068,120]
[408426078,1773599472269,-303.670483,0.00045068,120]
[408426079,1773599472279,-303.670483,0.00045068,120]
[408426080,1773599472288,-303.670483,0.00045068,120]
[408426081,1773599472298,-303.670483,0.00045068,120]
[408426082,1773599472307,-151.0,0.00045068,120]
[408426083,1773599472317,-303.670483,0.00045068,120]
[408426084,1773599472326,-151.0,0.00045068,120]
[408426085,1773599472336,-303.670483,0.00045068,120]
[408426086,1773599472345,-186.145831,0.00045068,120]
[408426087,1773599472355,-303.670483,0.00045068,120]
[408426088,1773599472364,-303.670483,0.00045068,120]
[408426089,1773599472374,-303.670483,0.00045068,120]
[408426090,1773599472383,-303.670483,0.00045068,120]
[408426091,1773599472393,-303.670483,0.00045068,120]
[408426092,1773599472402,-303.670483,0.00045068,120]
[408426093,1773599472411,-303.670474,0.00045068,120]
[408426094,1773599472422,-151.0,0.00045068,120]
[408426095,1773599472431,-151.0,0.00045068,120]
[408426096,1773599472440,-151.0,0.00045068,120]
[408426097,1773599472449,-151.0,0.00045068,120]
[408426098,1773599472458,-151.0,0.00045068,120]
[408426099,1773599472469,-151.0,0.00045068,120]
[408426100,1773599472479,-151.0,0.00045068,120]
[408426101,1773599472490,-151.0,0.00045068,120]
[408426102,1773599472501,-207.808876,0.00045068,120]
[408426103,1773599472510,-151.0,0.00045068,120]
[408426104,1773599472524,-151.0,0.00045068,120]
[408426105,1773599472535,-151.0,0.00045068,120]
[408426106,1773599472545,-151.0,0.00045068,120]
[408426107,1773599472555,-151.0,0.00045068,120]
[408426108,1773599472565,-151.0,0.00045068,120]
[408426109,1773599472575,-179.096909,0.00045068,120]
[408426110,1773599472586,-151.0,0.00045068,120]
[408426111,1773599472595,-151.0,0.00045068,120]
[408426112,1773599472605,-151.0,0.00045068,120]
[408426113,1773599472616,-151.0,0.00045068,120]
[408426114,1773599472627,-151.0,0.00045068,120]
[408426115,1773599472637,-151.0,0.00045068,120]
[408426116,1773599472647,-151.0,0.00045068,120]
[408426117,1773599472656,-151.0,0.00045068,120]
[408426118,1773599472668,-168.489183,0.00045068,120]
[408426119,1773599472677,-288.01971,0.00045068,120]
[408426120,1773599472686,-151.0,0.00045068,120]
[408426121,1773599472696,-151.0,0.00045068,120]
[408426122,1773599472705,-151.0,0.00045068,120]
[408426123,1773599472714,-151.0,0.00045068,120]
[408426124,1773599472724,-151.0,0.00045068,120]
[408426125,1773599472735,-151.0,0.00045068,120]
[408426126,1773599472744,-151.0,0.00045068,120]
[408426127,1773599472753,-151.0,0.00045068,120]
[408426128,1773599472762,-218.607887,0.00045068,120]
[408426129,1773599472772,-151.0,0.00045068,120]
[408426130,1773599472781,-151.0,0.00045068,120]
[408426131,1773599472790,-176.400052,0.00045068,120]
[408426132,1773599472799,-151.0,0.00045068,120]
[408426133,1773599472808,-151.0,0.00045068,120]
[408426134,1773599472818,-151.0,0.00045068,120]
[408426135,1773599472828,-151.0,0.00045068,120]
[408426136,1773599472838,-151.0,0.00045068,120]